Workbook

Sheet Feuil1
A1: Ne remplir que les cases jaunes, le reste est automatique !
A3: MASSE et CENTRAGE pour ROBIN DR 400-120 F-GNNS
A5: Parcours:
A7: Carburant 100 LL Charge total max. 900 kg | H7: Total diff. ASFC to Alt/FL | I7: 4500 | J7: ft
E8: Distance totale (Nm) | F8: 78 | H8: Nombre total de TKOF | I8: 1
A10: Roulage | B10: 5'/roul => 3 l/roul. (forfait) | F10: Avions | G10: Masses | H10: Moments
A11: Montée | B11: 0,5 l/min & 2,7Nm/1000 ft & 2'/1000 ft | F11: F-GNNS | G11: 5559Kg | H11: 165 kg.m
A12: Croisière | B12: Vp = 100 kt/h => 0,4 l/min
A13: Approche | B13: 10'/app => 4 l/app (forfait)
A14: Réserve finale | B14: Jour: 20' => 8 l Nuit: 45' => 18 l
A16: Plein Carburant | B16: 110 l x 0,72 kg/l = 79 kg
A18: Limitations opérationnelles: TKOF…….....….kg En route:……..…… kg LND: …………………..kg
A20: Prévisions carburant. | F20: RA: délestage + 10% + 20 min.
F21: max. réservoire: 110 l = 79 kg
B23: Distance (Nm) | C23: Temps (min) | D23: Carburant (l) | F23: Délestage/consom. | H23: =D29 -> 27.2824 | I23: litres
A24: Roulage(s) | B24: forfait | C24: =I8*5 -> 5 | D24: =C24*3/5 -> 3 | F24: + 10 % Réserve | H24: =0.1*H23 -> 2.72824 | I24: litres
A25: + Montée(s) | B25: =500*C25*2.72/1000 -> 12.24 | C25: =(I7*2/1000)*I8 -> 9 | D25: =0.5*C25 -> 4.5 | F25: + Dégagement(s) | H25: 20 | I25: litres
A26: + Croisière(s) | B26: =F8-B25 -> 65.76 | C26: =B26*60/100 -> 39.456 | D26: =0.4*C26 -> 15.7824 | F26: + 20' Réserve jour | H26: 8 | I26: litres
A27: + Approche(s) | B27: forfait | C27: =10*I8 -> 10 | D27: =4*I8 -> 4 | F27: + Fond réservoire | H27: 10 | I27: litres
F28: = Min carbur. RA (l) | H28: =H23+H24+H25+H26+H27 -> 68.01064 | I28: =0.72*H28 -> 48.9676608 | J28: kg
A29: = Total | B29: =B26+B25 -> 78 | C29: =C24+C25+C26+C27 -> 63.456 | D29: =D24+D25+D26+D27 -> 27.2824
F31: Carburant utile | H31: =H28+H29 -> 68.01064 | I31: =I28+I29 -> 48.9676608 | J31: kg
A32: Chargement | F32: =IF(H31<110,"","ATTENTION, RESERVOIR INSUFFISANT !") -> 
A34: Limitation utile (selon perf.et/ou piste) | C34: 900 | D34: kg | F34: Carbur embarqué (l) | H34: 90 | I34: =0.72*H34 -> 64.8 | J34: kg
A35: - Masse avion à vide (selon manuel) | C35: 559 | D35: kg | F35: - Min carbur RA (l) | H35: =H31 -> 68.01064 | I35: =I31 -> 48.9676608 | J35: kg
A36: = Charge offerte | C36: =C34-C35 -> 341 | D36: kg | F36: = Réserve supp. (l) | H36: =H34-H35 -> 21.98936 | I36: =I34-I35 -> 15.8323392 | J36: kg
A37: - carburant embarqué | C37: =I34 -> 64.8 | D37: kg | F37: =IF(H36>0,"","QUANTITE FUEL INSUFFISANT !") -> 
A38: = Charge autorisée Pax+soute | C38: =C36-C37 -> 276.2 | D38: kg | F38: => Autonomie supplément. | I38: =H36/0.4 -> 54.9734
A39: - Charge réelle Pax + soute | C39: =B49+B50+B51 -> 245 | D39: kg | F39: disponible pour vol palier | I39: minutes
A41: = Charge offerte restante | C41: =C38-C39 -> 31.2 | D41: kg | F41: =IF(H34<110.1,"","CAPACITE RESERVOIR = MAX 110 l !!!") -> 
A42: =IF(C34<900.1,"","LIMITE UTILE > CHARGE MAX AVION !") ->  | C42: =IF(C41<0,"SURCHARGE !","") -> 
A44: CALCUL CENTRAGE | G44: CENTROGRAMME
B46: Masses | C46: bras levier | D46: Moments
B47: (kg) | C47: (m) | D47: (kg.m)
A48: Masse à vide | B48: 559 | C48: x 0,334 = | D48: =0.334*B48 -> 186.706
A49: + Pax avant | B49: 165 | C49: x 0,41 = | D49: =0.41*B49 -> 67.65
A50: + Pax arrière | B50: 50 | C50: x 1,19 = | D50: =1.19*B50 -> 59.5
A51: + Soute (40 kg) | B51: 30 | C51: x 1,90 = | D51: =1.9*B51 -> 57
A53: = Tot. hors fuel | B53: =B48+B49+B50+B51 -> 804 | C53: =D53/B53 -> 0.4612636816 | D53: =D48+D49+D50+D51 -> 370.856
A55: + Fuel emb. (Kg) | B55: =I34 -> 64.8 | C55: x 1,12 = | D55: =1.12*B55 -> 72.576
A57: = Masse TKOF | B57: =B53+B55 -> 868.8 | C57: =D57/B57 -> 0.5103959484 | D57: =D53+D55 -> 443.432
A59: =IF(B57<=900,"","DANGER, masse TKOF > masse tolérences avion !!!") -> 
A60: =IF(B57<=C34,"","DANGER, masse TKOF > Limitation utile !") -> 

Sheet Feuil2 (hidden)
A1: leviers | B1: Masses | D1: leviers calculés | E1: Masse calculée | M1: Masse
A2: 0.205 | B2: 600 | D2: =Feuil1!C53 -> 0.4612636816 | E2: =Feuil1!B53 -> 804 | L2: 2005-02-01 | M2: 550
A3: 0.205 | B3: 750 | D3: =Feuil1!C57 -> 0.5103959484 | E3: =Feuil1!B57 -> 868.8 | L3: 2005-02-01 | M3: 700
A4: 0.428 | B4: 900 | L4: 2005-02-03 | M4: 900
A5: 0.564 | B5: 900 | L5: 2005-02-05 | M5: 900
A6: 0.564 | B6: 600 | L6: 2005-02-05 | M6: 550
A8: DR 400-120
